bitfinex/quotes_ETHUSD_20251206
["timestamp","ask_amount","ask_price","bid_price","bid_amount"]
[1765024998208,5.07927345,3034.9,3034.8,0.001]
[1765024998395,5.17927345,3034.9,3034.8,0.001]
[1765024999795,4.80197345,3034.9,3034.8,0.4991]
[1765024999995,3.81500148,3034.9,3034.8,0.9569]
[1765025000705,3.81500148,3034.9,3034.8,0.4991]
[1765025002186,5.07927345,3034.9,3034.8,0.001]
[1765025003221,5.17927345,3034.9,3034.8,0.001]
[1765025003520,4.90197345,3034.9,3034.8,0.4991]
[1765025005919,3.81500148,3034.9,3034.8,0.4991]
[1765025006089,3.81500148,3034.9,3034.8,0.9569]
[1765025006929,3.81500148,3034.9,3034.8,0.4991]
[1765025009430,3.91500148,3034.9,3034.8,0.4991]
[1765025010133,3.81500148,3034.9,3034.8,0.4991]
[1765025016133,3.29500148,3034.9,3034.8,0.4991]
[1765025016427,3.29500148,3034.9,3034.8,0.9569]
[1765025016729,3.29500148,3034.9,3034.8,0.4991]
[1765025018928,3.29500148,3034.9,3034.8,0.9569]
[1765025019329,3.29500148,3034.9,3034.8,0.9777]
[1765025019631,0.98954218,3035.2,3034.8,0.9777]
[1765025019834,3.8146758,3035.2,3034.9,0.4786]
[1765025020125,4.54026991,3035.2,3035.1,0.481]
[1765025020327,4.54026991,3035.2,3034.9,0.4786]
[1765025020328,7.83494571,3035.2,3034.9,0.4786]
[1765025020532,0.2641,3035.0,3034.8,0.001]
[1765025020834,0.0049,3034.9,3034.8,0.001]
[1765025021413,3.29489291,3035.0,3034.8,0.001]
[1765025022015,1.35107197,3034.9,3034.8,0.001]
[1765025024836,3.65910148,3034.9,3034.8,0.001]
[1765025025934,4.13770148,3034.9,3034.8,0.001]
[1765025026534,4.13770148,3034.9,3034.8,0.482]
[1765025026938,0.4786,3034.9,3034.8,0.9606]
[1765025027309,3.29480351,3035.1,3034.8,0.9606]
[1765025027510,4.28427715,3035.1,3035.0,0.481]
[1765025027929,4.28427715,3035.1,3035.0,0.9596]
[1765025032049,0.98947364,3035.1,3035.0,0.9596]
[1765025032220,0.52,3035.3,3035.0,0.9596]
[1765025032550,3.81456725,3035.3,3035.2,0.4849]
[1765025033064,0.6524,3035.3,3035.2,0.9431]
[1765025033717,3.29450458,3035.4,3035.2,0.9431]
[1765025034052,4.28386075,3035.4,3035.3,0.9431]
[1765025034250,0.98935617,3035.4,3035.3,0.9431]
[1765025034415,3.29438624,3035.5,3035.3,0.9431]
[1765025034620,4.28371957,3035.5,3035.4,0.9431]
[1765025035553,3.29435018,3035.5,3035.4,0.9431]
[1765025041959,3.29435018,3035.5,3035.4,0.4849]
[1765025042261,3.58105018,3035.5,3035.1,0.6524]
[1765025042442,4.06215018,3035.5,3035.1,0.6524]
[1765025042837,4.06215018,3035.5,3035.2,0.4582]
[1765025043043,3.58105018,3035.5,3035.2,0.4582]
[1765025043536,0.2867,3035.5,3035.2,0.4582]
[1765025044965,3.58107812,3035.5,3035.2,0.4582]
[1765025046563,0.2867,3035.5,3035.2,0.4582]
[1765025047565,3.581066,3035.5,3035.2,0.4582]
[1765025049268,3.58105777,3035.5,3035.2,0.4582]
[1765025050764,0.2867,3035.5,3035.2,0.4582]
[1765025050972,3.58105114,3035.5,3035.2,0.4582]
[1765025052067,0.2867,3035.5,3035.2,0.4582]
[1765025052373,4.75737325,3035.6,3035.4,0.4971]
[1765025053371,1.4631,3035.6,3035.4,0.4971]
[1765025053772,4.75740618,3035.6,3035.4,0.4971]
[1765025054938,3.29445872,3035.4,3035.2,0.4582]
[1765025056451,3.29445872,3035.4,3035.1,0.1942]
[1765025056651,3.29445872,3035.4,3035.1,0.6449]
[1765025057467,3.29445872,3035.4,3034.8,0.4517]
[1765025057468,0.3099,3035.2,3034.8,0.4517]
[1765025057668,0.3099,3035.2,3034.8,0.001]
[1765025057862,0.0046,3034.9,3034.8,0.001]
[1765025058243,0.9707,3035.0,3034.8,0.4981]
[1765025058743,0.9707,3035.0,3034.8,0.9488]
[1765025059836,0.9707,3035.0,3034.9,0.4971]
[1765025060448,3.81470389,3035.2,3034.9,0.9478]
[1765025060780,3.81470389,3035.2,3035.1,0.4971]
[1765025061252,4.31180389,3035.2,3035.1,0.4971]
[1765025062374,4.31180389,3035.2,3034.9,0.4507]
[1765025062375,4.62170389,3035.2,3034.9,0.4507]
[1765025062876,4.12460389,3035.2,3034.9,0.4507]
[1765025063183,0.98944427,3035.1,3034.9,0.4507]
[1765025063373,0.98944427,3035.1,3034.9,0.82538966]
[1765025063544,0.98944427,3035.1,3035.0,0.6834]
[1765025063746,0.98944427,3035.1,3035.0,1.1341]
[1765025063943,3.29452399,3035.4,3035.0,1.1341]
[1765025064142,0.6834,3035.3,3035.0,1.1341]
[1765025066669,0.6834,3035.3,3035.1,0.4507]
[1765025066976,0.6834,3035.3,3035.2,0.4971]
[1765025068666,0.6834,3035.3,3035.0,0.1863]
[1765025068867,0.6834,3035.3,3035.2,0.4971]
[1765025069372,0.6834,3035.3,3035.2,0.9478]
[1765025070389,0.6834,3035.3,3035.2,0.4971]
[1765025072785,0.6834,3035.3,3035.2,4.2424758]
[1765025073092,0.6834,3035.3,3035.2,5.11353883]
[1765025073290,0.52,3035.7,3035.2,5.11353883]
[1765025073473,0.98929418,3035.6,3035.3,0.4507]
[1765025075087,4.28353953,3035.6,3035.3,0.4507]
[1765025075292,0.98929418,3035.6,3035.3,0.4507]
[1765025077291,4.28356187,3035.6,3035.3,0.4507]
[1765025077670,0.98929418,3035.6,3035.3,0.4507]
[1765025078363,0.98929418,3035.6,3035.5,0.4971]
[1765025079064,3.81416633,3035.7,3035.5,0.4971]
[1765025079474,4.80346051,3035.7,3035.5,0.4971]
[1765025082789,5.26876051,3035.7,3035.5,0.4971]
[1765025082983,5.26876051,3035.7,3035.3,0.4507]
[1765025084265,4.80346051,3035.7,3035.3,0.4507]
[1765025084901,4.80346051,3035.7,3035.6,0.4672]
[1765025085191,4.28346051,3035.7,3035.6,0.4672]
[1765025085593,3.29416633,3035.7,3035.6,0.4672]
[1765025086363,3.59846633,3035.7,3035.6,0.4672]
[1765025086569,3.59846633,3035.7,3035.3,0.4507]
[1765025089901,0.3043,3035.7,3035.3,0.4507]
[1765025090504,3.59844266,3035.7,3035.3,0.4507]
[1765025091915,0.3043,3035.7,3035.6,0.4672]
[1765025092119,3.29407403,3035.8,3035.6,0.4672]
[1765025092323,0.3043,3035.7,3035.3,0.4507]
[1765025092491,0.3043,3035.7,3035.3,0.82524201]
[1765025092692,0.3043,3035.7,3035.4,0.4792]
[1765025095492,3.29407403,3035.8,3035.6,0.4672]
[1765025095692,3.29407403,3035.8,3035.4,0.4792]
[1765025095693,3.29407403,3035.8,3035.7,0.4672]
[1765025096017,1.50926809,3035.9,3035.7,0.4672]
[1765025096018,3.29393637,3035.9,3035.7,0.4672]
[1765025097203,0.3043,3035.8,3035.4,0.4974]
[1765025099203,3.29413314,3035.7,3035.4,0.4974]
[1765025100244,3.29413314,3035.7,3035.1,0.52]
[1765025100438,3.74683314,3035.7,3035.2,0.99621251]
[1765025100943,7.67523825,3035.7,3035.1,0.52]
[1765025101223,0.3168,3035.2,3034.9,0.98922242]
[1765025101425,0.3168,3035.2,3034.8,0.4984]
[1765025101625,0.3168,3035.2,3034.9,0.4974]
[1765025104496,0.3168,3035.2,3034.8,0.001]
[1765025104497,0.0045,3035.0,3034.8,0.001]
[1765025104794,0.3137,3034.9,3034.8,0.001]
[1765025105012,0.4527,3035.1,3034.8,0.001]
[1765025105722,0.4527,3035.1,3034.8,0.4984]
[1765025107636,3.74751529,3035.1,3034.8,0.4984]
[1765025111652,0.1,3035.3,3034.8,0.4984]
[1765025111850,0.4994,3035.2,3034.8,0.4984]
[1765025114859,3.79416621,3035.2,3034.8,0.4984]
[1765025115143,3.29476621,3035.2,3035.1,0.4755]
[1765025117226,3.29456725,3035.3,3035.1,0.4755]
[1765025117426,0.2705,3035.2,3034.8,0.001]
[1765025117629,0.2705,3035.2,3034.8,0.4762]
[1765025118946,3.29478435,3035.1,3034.8,0.4762]
[1765025119127,3.29478435,3035.1,3034.8,0.6745172]
[1765025119329,3.29478435,3035.1,3035.0,0.4755]
[1765025119721,3.29478435,3035.1,3035.0,0.9507]
[1765025120221,3.29478435,3035.1,3035.0,0.4755]
[1765025120650,3.29456725,3035.3,3035.0,0.4755]
[1765025120953,3.79396725,3035.3,3035.0,0.4755]
[1765025121249,7.0885345,3035.3,3035.0,0.4755]
[1765025128263,0.2705,3035.1,3034.8,0.4762]
[1765025129259,0.005,3034.9,3034.8,0.001]
[1765025129762,0.5044,3034.9,3034.8,0.001]
[1765025129962,1.49137197,3034.9,3034.8,0.001]
[1765025130168,4.91830979,3034.9,3034.8,0.001]
[1765025130465,5.01830979,3034.9,3034.8,0.001]
[1765025132672,6.18389389,3034.9,3034.8,0.001]
[1765025134251,5.68449389,3034.9,3034.8,0.001]
[1765025134767,6.18389389,3034.9,3034.8,0.001]
[1765025139550,6.17119389,3034.9,3034.8,0.001]
[1765025140746,5.68449389,3034.9,3034.8,0.001]
[1765025141251,6.17119389,3034.9,3034.8,0.001]
[1765025142564,3.63193782,3034.9,3034.8,0.001]
[1765025143462,4.11863782,3034.9,3034.8,0.001]
[1765025154489,3.63193782,3034.9,3034.8,0.001]
[1765025154695,4.15193782,3034.9,3034.8,0.001]
[1765025158393,4.62313782,3034.9,3034.8,0.001]
[1765025161801,4.15193782,3034.9,3034.8,0.001]
[1765025161971,4.14693782,3034.9,3034.8,0.473]
[1765025162374,4.04693782,3034.9,3034.8,0.473]
[1765025162973,4.34533782,3034.9,3034.8,0.001]
[1765025168300,6.09061358,3034.9,3034.8,0.001]
[1765025169202,5.99061358,3034.9,3034.8,0.001]
[1765025169385,6.19061358,3034.9,3034.8,0.001]
[1765025172006,4.91483782,3034.9,3034.8,0.001]
[1765025172704,4.44533782,3034.9,3034.8,0.001]
[1765025173011,13.17471382,3034.9,3034.8,0.001]
[1765025173215,11.44769382,3034.9,3034.8,0.001]
[1765025173417,18.5434086,3034.9,3034.8,0.001]
[1765025173705,27.1064336,3034.9,3034.8,0.001]
[1765025173906,26.4997446,3034.9,3034.8,0.001]
[1765025174614,27.8935266,3034.9,3034.8,0.001]
[1765025175613,41.9002526,3034.9,3034.8,0.001]
[1765025176401,15.6665756,3034.9,3034.8,0.001]
[1765025176580,17.2120166,3034.9,3034.8,0.001]
[1765025177479,11.9002526,3034.9,3034.8,0.001]
[1765025177678,21.8665306,3034.9,3034.8,0.001]
[1765025177875,21.4450126,3034.9,3034.8,0.001]
[1765025178581,21.4285296,3034.9,3034.8,0.001]
[1765025179220,21.4285296,3034.9,3034.0,0.002]
[1765025179221,0.1,3034.1,3034.0,0.002]
[1765025179379,29.90898978,3034.1,3034.0,0.002]
[1765025179582,37.45817778,3034.1,3034.0,0.002]
[1765025179778,36.90661376,3034.1,3034.0,0.002]
[1765025180010,37.77603421,3034.1,3034.0,0.002]
[1765025180585,38.07196221,3034.1,3034.0,0.002]
[1765025181012,35.78501776,3034.1,3034.0,0.002]
[1765025181817,39.61794003,3034.1,3034.0,0.002]
[1765025182937,38.95817803,3034.1,3034.0,0.002]
[1765025183830,11.89839803,3034.1,3034.0,0.002]
[1765025184030,38.95817803,3034.1,3034.0,0.002]
[1765025184230,33.85387003,3034.1,3034.0,0.002]
[1765025184531,3.94788325,3034.1,3034.0,0.9491]
[1765025184831,3.94788325,3034.1,3034.0,0.80981721]
[1765025186234,3.94788325,3034.1,3034.0,0.35291721]
[1765025186419,0.13201298,3034.1,3034.0,0.80981721]
[1765025186598,3.42788325,3034.1,3034.0,0.80981721]
[1765025186803,3.29587027,3034.1,3034.0,0.80981721]
[1765025191202,3.29579464,3034.2,3034.0,0.80981721]
[1765025191532,3.29579464,3034.2,3034.1,0.4569]
[1765025191740,3.29579464,3034.2,3034.1,1.1323]
[1765025192441,3.29555957,3034.4,3034.1,1.1323]
[1765025192641,3.29555957,3034.4,3034.3,0.4902]
[1765025193142,3.29555957,3034.4,3034.3,0.9471]
[1765025193443,3.81532831,3034.6,3034.3,0.9471]
[1765025193444,3.29543582,3034.5,3034.3,0.9471]
[1765025193621,3.29543582,3034.5,3034.4,0.4569]
[1765025193939,3.29543582,3034.5,3034.4,0.9471]
[1765025196046,3.29531973,3034.7,3034.4,0.9471]
[1765025196348,3.29531973,3034.7,3034.6,0.4902]
[1765025200242,7.49564039,3034.7,3034.1,0.6748]
[1765025200735,5.86944204,3034.6,3034.1,0.6748]
[1765025200937,0.98697197,3034.5,3034.1,0.6748]
[1765025201138,3.29543582,3034.5,3034.2,0.4896]
[1765025201338,0.52,3034.6,3034.4,0.474]
[1765025201524,0.52,3034.6,3034.2,0.4896]
[1765025201720,0.52,3034.6,3034.5,0.474]
[1765025202120,0.52,3034.6,3034.5,0.9636]
[1765025202554,3.81532722,3034.6,3034.5,0.9636]
[1765025203954,3.81532722,3034.6,3034.5,0.474]
[1765025204256,7.11065444,3034.6,3034.2,0.4896]
[1765025206156,3.81532722,3034.6,3034.5,0.474]
[1765025208040,3.81532722,3034.6,3034.5,0.9636]
[1765025212490,3.81532722,3034.6,3034.5,0.474]
[1765025213688,3.29532722,3034.6,3034.5,0.474]
[1765025214647,3.29532722,3034.6,3034.5,0.9636]
[1765025215676,3.29532722,3034.6,3034.5,0.474]
[1765025215974,3.29532722,3034.6,3034.5,0.9636]
[1765025216168,3.29532722,3034.6,3034.5,0.474]
[1765025219388,3.29532722,3034.6,3033.8,0.002]
[1765025219389,7.72881094,3034.6,3033.8,0.002]
[1765025219586,5.86944204,3034.4,3033.9,0.4673]
[1765025219793,0.52,3034.3,3033.9,0.4673]
[1765025220287,0.52,3034.3,3034.2,0.4527]
[1765025221169,12.88499648,3034.6,3034.2,0.4527]
[1765025221366,0.52,3034.5,3034.2,0.4527]
[1765025222897,3.29554442,3034.4,3034.2,0.4527]
[1765025224468,3.29554442,3034.4,3034.3,0.4527]
[1765025229103,6.59108884,3034.4,3034.1,0.1105]
[1765025229413,6.59108884,3034.4,3034.1,0.5922]
[1765025231001,3.29554442,3034.4,3034.3,0.4579]
[1765025231303,1.08697197,3034.5,3034.3,0.4579]
[1765025231511,0.52,3034.7,3034.4,0.9396]
[1765025231817,0.52,3034.7,3034.6,0.4579]
[1765025232025,0.925504,3034.7,3033.8,0.002]
[1765025232178,5.86944204,3034.3,3033.8,0.002]
[1765025232578,0.468,3034.3,3033.8,0.4837]
[1765025234018,3.29576165,3034.2,3033.8,0.4837]
[1765025237106,3.29576165,3034.2,3034.1,0.4579]
[1765025237401,0.52,3034.9,3034.1,0.5827]
[1765025237600,0.52,3034.9,3034.3,0.4579]
[1765025238114,0.52,3034.9,3034.4,0.4817]
[1765025238611,6.58874714,3035.5,3034.8,0.4579]
[1765025238910,6.58874714,3035.5,3034.9,0.4579]
[1765025238911,0.98697197,3035.2,3034.9,0.4579]
[1765025239276,0.98697197,3035.2,3034.7,0.4817]
[1765025239277,0.4869,3035.0,3034.7,0.4817]
[1765025240711,3.29500148,3034.9,3034.2,4.28269563]
[1765025240907,3.29500148,3034.9,3034.5,0.4817]
[1765025241091,3.29500148,3034.9,3034.8,0.4579]
[1765025243022,3.29485303,3035.1,3034.8,0.4579]
[1765025243185,3.29485303,3035.1,3035.0,0.4579]
[1765025245310,3.29485303,3035.1,3035.0,0.9396]
[1765025245938,3.29456725,3035.3,3035.0,0.9396]
[1765025246117,3.29456725,3035.3,3035.2,0.4579]
[1765025246321,6.5891345,3035.3,3034.5,0.4817]
[1765025246521,6.30694204,3035.2,3034.5,0.4817]
[1765025247017,1.42447197,3035.2,3034.5,0.4817]
[1765025248016,6.5895687,3035.1,3034.5,0.4817]
[1765025250111,6.6895687,3035.1,3034.5,0.4817]
[1765025250301,6.6895687,3035.1,3034.1,0.1248]
[1765025250302,0.4375,3034.6,3034.1,0.1248]
[1765025250703,0.4677,3034.5,3034.1,0.1248]
[1765025250900,0.4677,3034.5,3034.0,0.4817]
[1765025251094,0.4677,3034.5,3033.8,0.4837]
[1765025252041,3.29554442,3034.4,3033.8,0.4837]
[1765025252199,3.29554442,3034.4,3033.8,1.08536563]
[1765025252394,3.29554442,3034.4,3033.9,0.4817]
[1765025253312,3.76354442,3034.4,3033.9,0.4817]
[1765025255606,3.29554442,3034.4,3033.9,0.4817]
[1765025256527,0.52,3034.6,3034.3,0.4579]
[1765025256834,0.52,3034.6,3034.5,0.4579]
[1765025257622,3.8153432,3034.6,3034.5,0.4579]
[1765025262231,3.8153432,3034.6,3034.3,0.6157]
[1765025262232,4.2796432,3034.6,3034.3,0.6157]
[1765025262444,4.7208432,3034.6,3034.1,0.656]
[1765025263043,4.7208432,3034.6,3034.2,0.4632]
[1765025263530,4.7208432,3034.6,3034.5,0.4593]
[1765025263531,3.8153432,3034.6,3034.5,0.4593]
[1765025263737,3.8153432,3034.6,3034.2,0.4632]
[1765025264106,4.2762432,3034.6,3034.2,0.4632]
[1765025266123,0.4609,3034.5,3034.1,0.1928]
[1765025266440,0.4609,3034.5,3034.1,0.656]
[1765025266637,7.1106864,3034.6,3034.1,0.656]
[1765025266834,7.5715864,3034.6,3034.1,0.1928]
[1765025267137,4.2762432,3034.6,3034.2,0.4632]
[1765025272437,5.00749479,3035.0,3034.2,0.4632]
[1765025272438,0.1,3035.1,3034.5,0.4889]
[1765025272615,0.1,3035.1,3034.1,0.1928]
[1765025272616,0.4969,3035.0,3034.1,0.1928]
[1765025272821,0.1,3034.8,3034.1,0.1928]
[1765025273034,0.62,3034.9,3034.1,0.1928]
[1765025273336,0.5969,3034.8,3034.1,0.6917]
[1765025273529,0.5969,3034.8,3034.1,1.62543134]
[1765025274025,1.58387197,3034.8,3034.1,1.62543134]
[1765025274227,0.4969,3034.7,3034.1,1.62543134]
[1765025274425,3.29532722,3034.6,3034.2,0.4989]
[1765025275819,3.29525225,3034.7,3034.5,0.4889]
[1765025276016,3.2951024,3034.9,3034.6,0.4889]
[1765025276215,3.81487307,3035.1,3034.8,0.4889]
[1765025277224,3.81487307,3035.1,3035.0,0.4889]
[1765025277623,3.29487307,3035.1,3035.0,0.4889]
[1765025278037,3.29487307,3035.1,3034.8,0.4989]
[1765025278923,6.58943784,3035.2,3034.4,1.50697197]
[1765025279240,7.08633784,3035.2,3034.6,0.4989]
[1765025279448,0.4969,3035.1,3034.6,0.4989]
[1765025280445,1.48387197,3035.1,3034.4,1.0189]
[1765025280813,1.48387197,3035.1,3034.4,0.52]
[1765025281017,1.48387197,3035.1,3034.5,0.4989]
[1765025281545,3.29489291,3035.0,3034.5,0.4989]
[1765025281849,3.29489291,3035.0,3034.4,0.52]
[1765025282346,3.29489291,3035.0,3034.4,2.5360311]
[1765025283147,3.29489291,3035.0,3034.5,0.4989]
[1765025283954,6.58978582,3035.0,3034.5,0.4989]
[1765025291966,6.58978582,3035.0,3034.4,0.52]
[1765025292246,0.4869,3034.9,3034.4,0.52]
[1765025292658,0.4869,3034.9,3034.4,0.979]
[1765025293163,6.5902201,3034.8,3034.4,0.979]
[1765025294539,3.29532722,3034.6,3034.4,0.52]
[1765025295441,3.29532722,3034.6,3034.5,0.4742]
[1765025295640,0.4869,3034.9,3034.5,0.4742]
[1765025295641,3.29526297,3034.7,3034.5,0.4742]
[1765025295862,3.29515181,3034.8,3034.5,0.9332]
[1765025296062,3.29515181,3034.8,3034.6,0.4742]
[1765025296363,3.29515181,3034.8,3034.7,0.4742]
[1765025296778,3.29500148,3034.9,3034.7,0.4742]
[1765025297159,3.29500148,3034.9,3034.8,0.4742]
[1765025299753,6.58891744,3035.4,3034.8,0.4742]
[1765025299954,6.58891744,3035.4,3034.9,0.4742]
[1765025300168,3.29445872,3035.4,3034.9,0.4742]
[1765025300474,3.29445872,3035.4,3035.0,0.459]
[1765025301042,6.58891744,3035.4,3035.0,0.459]
[1765025303646,7.07581744,3035.4,3035.0,0.459]
[1765025303840,7.07581744,3035.4,3034.8,0.459]
[1765025304248,0.4869,3035.3,3034.8,0.459]
[1765025305959,3.2946758,3035.2,3034.8,0.459]
[1765025306475,3.7815758,3035.2,3034.8,0.459]
[1765025307767,3.2946758,3035.2,3034.6,0.98697197]
[1765025307971,0.4869,3035.1,3034.6,1.44597197]
[1765025308142,3.78177394,3035.1,3034.6,2.07081652]
[1765025308341,3.78177394,3035.1,3034.7,0.459]
[1765025316096,3.29487394,3035.1,3035.0,0.4742]
[1765025325021,7.03464788,3035.1,3034.8,0.459]
[1765025325624,7.03464788,3035.1,3034.6,1.46867197]
[1765025325933,7.49504788,3035.1,3034.7,0.4817]
[1765025329058,7.03464788,3035.1,3034.7,0.4817]
[1765025331544,3.73977394,3035.1,3034.7,0.4817]
[1765025333833,7.03464788,3035.1,3034.7,0.4817]
[1765025334042,0.5604,3035.0,3034.6,1.28453636]
[1765025334535,0.5604,3035.0,3034.6,1.74383636]
[1765025334736,3.29500148,3034.9,3034.6,1.74383636]
[1765025334923,3.29500148,3034.9,3034.6,1.28453636]
[1765025335122,3.29500148,3034.9,3034.8,0.4596]
[1765025340607,3.73290148,3034.9,3034.5,0.52]
[1765025340815,3.73290148,3034.9,3034.5,0.9793]
[1765025341067,7.02790296,3034.9,3034.2,0.98939206]
[1765025341337,5.9743781,3034.3,3033.8,0.002]
[1765025341644,0.98697197,3034.7,3033.8,0.002]
[1765025341645,0.1932,3033.9,3033.8,0.002]
[1765025341816,20.72072301,3033.9,3033.8,0.002]
[1765025342015,20.6724652,3033.9,3033.8,0.002]
[1765025342434,21.39805931,3033.9,3033.8,0.002]
[1765025342736,29.12963878,3033.9,3033.8,0.002]
[1765025343698,45.70018932,3033.9,3033.8,0.002]
[1765025344050,44.70018932,3033.9,3033.8,0.002]
[1765025344247,35.36513332,3033.9,3033.8,0.002]
[1765025344683,34.71437632,3033.9,3033.8,0.002]
[1765025345786,34.61007132,3033.9,3033.8,0.002]
[1765025346586,31.62886432,3033.9,3033.8,0.002]
[1765025347692,32.13374032,3033.9,3033.8,0.002]
[1765025348056,31.62886432,3033.9,3033.8,0.002]
[1765025348486,11.39985922,3033.9,3033.8,0.002]
[1765025348702,15.29146222,3033.9,3033.8,0.002]
[1765025348870,14.82386222,3033.9,3033.8,0.002]
[1765025349184,13.32183908,3033.9,3033.8,0.002]
[1765025354824,17.21055008,3033.9,3033.8,0.002]
[1765025370514,17.21760324,3033.9,3033.8,0.002]
[1765025380347,17.62310724,3033.9,3033.8,0.002]
[1765025389874,17.49110777,3033.9,3033.8,0.002]
[1765025395689,13.60239677,3033.9,3033.8,0.002]
[1765025395976,13.60239677,3033.9,3033.5,0.001]
[1765025395977,26.68204611,3033.8,3033.5,0.001]
[1765025396182,26.88009067,3033.8,3033.5,0.001]
[1765025396546,27.01211193,3033.8,3033.5,0.001]
[1765025396746,33.53423793,3033.8,3033.5,0.001]
[1765025397045,29.19010093,3033.8,3033.5,0.001]
[1765025397376,14.09959493,3033.8,3033.5,0.001]
[1765025397547,14.55879493,3033.8,3033.5,0.001]
[1765025397743,19.34174611,3033.8,3033.5,0.001]
[1765025397943,17.78494911,3033.8,3033.5,0.001]
[1765025398270,15.33961711,3033.8,3033.5,0.001]
[1765025399855,15.32979211,3033.8,3033.5,0.001]
[1765025400784,14.87059211,3033.8,3033.5,0.001]
[1765025401866,12.44835811,3033.8,3033.5,0.001]
[1765025402170,14.87059211,3033.8,3033.5,0.001]
[1765025402978,24.74508511,3033.8,3033.5,0.001]
[1765025403485,23.26312011,3033.8,3033.5,0.001]
[1765025404206,12.90755811,3033.8,3033.5,0.001]
[1765025404378,22.77292311,3033.8,3033.5,0.001]
[1765025405312,12.90755811,3033.8,3033.5,0.001]
[1765025405510,22.77292311,3033.8,3033.5,0.001]
[1765025407678,12.44835811,3033.8,3033.5,0.001]
[1765025408513,11.97745811,3033.8,3033.7,0.4756]
[1765025408714,3.29619618,3033.8,3033.7,0.9603]
[1765025409880,3.29608754,3033.9,3033.7,0.9603]
[1765025410076,3.29608754,3033.9,3033.8,0.9552]
[1765025410077,4.02168165,3033.9,3033.8,0.9552]
[1765025410813,4.02168165,3033.9,3033.7,0.002]
[1765025410814,13.93205911,3033.8,3033.7,0.002]
[1765025411114,20.79146234,3033.8,3033.7,0.002]
[1765025411706,9.29730134,3033.8,3033.7,0.002]
[1765025412002,42.59349752,3033.8,3033.7,0.002]
[1765025412206,43.6583721,3033.8,3033.7,0.002]
[1765025413126,39.1383061,3033.8,3033.7,0.002]
[1765025413329,34.0570371,3033.8,3033.7,0.002]
[1765025413900,24.5222881,3033.8,3033.7,0.002]
[1765025414106,5.10876226,3033.8,3033.7,0.4997]
[1765025414406,5.72876226,3033.8,3033.7,0.9572]
[1765025416129,5.72876226,3033.8,3033.7,0.4997]
[1765025416335,5.72876226,3033.8,3033.7,0.9572]
[1765025416934,4.74179029,3033.8,3033.7,0.9572]
[1765025417105,3.39619618,3033.8,3033.7,0.9572]
[1765025422742,4.38316815,3033.8,3033.7,0.9572]
[1765025426043,3.39619618,3033.8,3033.7,0.9572]
[1765025426665,3.29619618,3033.8,3033.7,0.9572]
[1765025429930,3.39619618,3033.8,3033.7,0.4997]
[1765025430758,3.96609618,3033.8,3033.7,0.002]
[1765025431366,12.26618948,3033.8,3033.7,0.002]
[1765025431660,23.53413448,3033.8,3033.7,0.002]
[1765025431848,23.93963848,3033.8,3033.7,0.002]
[1765025432363,23.94035989,3033.8,3033.7,0.002]
[1765025432529,31.41067289,3033.8,3033.7,0.002]
[1765025433364,27.07997789,3033.8,3033.7,0.002]
[1765025433674,5.94325822,3033.8,3033.7,0.4997]
[1765025433902,8.32237322,3033.8,3033.7,0.4997]
[1765025434263,8.79227322,3033.8,3033.7,0.002]
[1765025434464,9.24277322,3033.8,3033.7,0.002]
[1765025441198,9.64827722,3033.8,3033.7,0.002]
[1765025441805,23.47178622,3033.8,3033.7,0.002]
[1765025442010,22.55277222,3033.8,3033.7,0.002]
[1765025442707,25.10819522,3033.8,3033.7,0.002]
[1765025443117,16.58506822,3033.8,3033.7,0.002]
[1765025443315,14.00594522,3033.8,3033.7,0.002]
[1765025443506,12.79656022,3033.8,3033.7,0.002]
[1765025443879,12.57865122,3033.8,3033.7,0.002]
[1765025444083,6.39886222,3033.8,3033.7,0.4957]
[1765025444293,9.27978022,3033.8,3033.7,0.002]
[1765025444497,9.73098022,3033.8,3033.7,0.002]
[1765025444710,13.38337622,3033.8,3033.7,0.002]
[1765025448023,17.40218522,3033.8,3033.7,0.002]
[1765025448936,7.32496222,3033.8,3033.7,0.002]
[1765025449151,18.42651722,3033.8,3033.7,0.002]
[1765025449447,17.47443722,3033.8,3033.7,0.002]
[1765025450222,17.60645151,3033.8,3033.7,0.002]
[1765025451009,17.31920451,3033.8,3033.7,0.002]
[1765025452146,18.54344451,3033.8,3033.7,0.002]
[1765025452662,17.59136451,3033.8,3033.7,0.002]
[1765025453211,20.82546151,3033.8,3033.7,0.002]
[1765025454326,37.45697651,3033.8,3033.7,0.002]
[1765025455236,7.45697651,3033.8,3033.7,0.002]
[1765025455542,37.45697651,3033.8,3033.7,0.002]
[1765025455719,23.16842351,3033.8,3033.7,0.002]
[1765025456038,20.51668551,3033.8,3033.7,0.002]
[1765025456242,30.65987951,3033.8,3033.7,0.002]
[1765025457358,30.91328951,3033.8,3033.7,0.002]
[1765025459361,36.50298651,3033.8,3033.7,0.002]
[1765025460366,36.51537451,3033.8,3033.7,0.002]
[1765025460968,36.24957651,3033.8,3033.7,0.002]
[1765025461354,36.74957651,3033.8,3033.7,0.002]
[1765025461870,35.57008651,3033.8,3033.7,0.002]
[1765025462055,27.24210751,3033.8,3033.7,0.002]
[1765025462359,26.67843051,3033.8,3033.7,0.002]
[1765025463229,26.22723051,3033.8,3033.7,0.002]
[1765025463436,29.59306251,3033.8,3033.7,0.002]
[1765025463753,26.45756951,3033.8,3033.7,0.002]
[1765025464679,6.53087651,3033.8,3033.7,0.4619]
[1765025464879,8.84168751,3033.8,3033.7,0.9282]
[1765025465484,14.47513851,3033.8,3033.7,0.9282]
[1765025465688,14.47513851,3033.8,3033.7,0.4619]
[1765025465850,14.47513851,3033.8,3032.6,0.002]
[1765025465851,30.605504,3033.0,3032.6,0.002]
[1765025466056,44.58877542,3033.0,3032.6,0.002]